bitfinex-derivatives/quotes_ETHF0:USTF0_20250810
["timestamp","ask_amount","ask_price","bid_price","bid_amount"]
[1754796500300,0.35469,4228.2,4227.8,0.8139]
[1754796500503,0.35468,4228.3,4227.8,0.8139]
[1754796500701,1.61378,4228.3,4227.8,0.8139]
[1754796500913,0.35471,4228.0,4227.5,3.2078]
[1754796501208,0.0513,4227.7,4227.5,3.2078]
[1754796501508,0.35475,4227.5,4226.6,4.1376]
[1754796501699,0.35475,4227.5,4227.0,0.8189]
[1754796501894,0.35476,4227.3,4227.0,0.8189]
[1754796502104,0.35476,4227.3,4227.0,0.005]
[1754796502105,1.2591,4227.2,4227.0,0.005]
[1754796502305,2.1382,4227.2,4227.0,0.005]
[1754796502703,2.1382,4227.2,4226.1,3.2078]
[1754796502704,8.44514993,4227.1,4226.1,3.2078]
[1754796502906,1.2591,4227.0,4225.7,0.8139]
[1754796503105,0.35485,4226.3,4225.7,0.8139]
[1754796503402,3.2541,4227.1,4225.9,0.35488]
[1754796503596,0.0463,4227.1,4225.9,3.56268]
[1754796503798,1.3054,4227.1,4225.9,4.0217]
[1754796504005,0.35479,4227.0,4225.9,4.0217]
[1754796504311,1.2591,4227.1,4226.3,1.28464]
[1754796504602,0.35483,4226.6,4226.4,0.8139]
[1754796504803,1.2591,4226.8,4225.9,3.2078]
[1754796505008,1.61395,4226.3,4225.9,3.2078]
[1754796505204,1.61395,4226.3,4225.6,0.8139]
[1754796505205,1.2591,4225.9,4225.6,0.8139]
[1754796505501,2.1332,4226.3,4225.4,3.2078]
[1754796505708,1.2591,4226.2,4225.4,3.2078]
[1754796506501,0.35487,4226.1,4225.4,3.2078]
[1754796506697,1.2591,4226.2,4225.4,3.2078]
[1754796506904,1.2591,4226.2,4225.4,4.0217]
[1754796507406,1.2591,4226.2,4225.5,0.35492]
[1754796507613,1.2591,4226.2,4225.4,4.9515]
[1754796508004,0.0463,4226.3,4225.4,4.9515]
[1754796508205,1.2591,4226.2,4225.4,4.0217]
[1754796508405,1.2591,4226.2,4225.4,4.9515]
[1754796508606,0.35487,4226.1,4225.4,4.9515]
[1754796508806,1.614,4225.8,4225.4,4.0217]
[1754796509012,1.2591,4225.7,4225.4,4.0217]
[1754796509312,1.2591,4225.6,4225.4,3.2078]
[1754796509504,1.2591,4225.5,4225.4,3.2078]
[1754796509914,1.3054,4225.2,4224.8,3.2078]
[1754796510210,0.35495,4225.1,4224.8,3.2078]
[1754796510404,1.3054,4225.1,4224.8,3.2078]
[1754796510604,0.35491,4225.6,4224.8,3.2078]
[1754796511112,0.0463,4225.7,4224.8,3.2078]
[1754796511113,0.35492,4225.5,4224.8,3.2078]
[1754796511309,0.0463,4225.7,4224.8,3.2078]
[1754796511514,0.0463,4225.7,4224.8,3.56278]
[1754796511717,0.35491,4225.6,4224.8,3.2078]
[1754796512012,1.2591,4225.1,4224.8,4.0217]
[1754796512203,1.3054,4225.1,4224.8,4.0217]
[1754796512813,0.0463,4225.6,4224.8,3.2078]
[1754796513007,0.005,4225.5,4224.8,3.2078]
[1754796513211,0.35493,4225.3,4224.8,3.2078]
[1754796513403,1.2591,4224.7,4224.6,0.005]
[1754796513609,2.1332,4224.7,4224.6,0.005]
[1754796513807,1.3054,4224.7,4224.6,0.005]
[1754796514008,1.2591,4224.7,4224.6,0.005]
[1754796514627,1.2591,4225.0,4224.6,0.005]
[1754796514821,3.2078,4225.3,4224.7,1.7437]
[1754796515009,0.35495,4225.2,4224.7,1.7437]
[1754796515315,0.35493,4225.4,4224.7,1.7437]
[1754796515509,1.3066,4225.5,4225.4,0.5]
[1754796516119,0.005,4225.5,4225.4,0.5]
[1754796516414,0.005,4225.5,4225.4,1.3062]
[1754796516916,0.005,4225.5,4225.4,0.8062]
[1754796517416,3.2078,4226.9,4226.2,1.7263]
[1754796517614,1.2553,4227.2,4226.7,0.9201]
[1754796517820,1.2553,4227.2,4226.8,0.8062]
[1754796518116,3.2078,4227.5,4226.4,3.2078]
[1754796518314,3.56249,4228.3,4227.3,0.35477]
[1754796518511,3.2078,4228.3,4227.6,0.35474]
[1754796518709,3.2078,4228.3,4227.2,3.0067]
[1754796518710,3.2078,4228.3,4227.5,0.35475]
[1754796518917,3.2078,4228.3,4227.6,0.8062]
[1754796519120,3.2078,4228.3,4227.7,0.9201]
[1754796520722,0.35469,4228.2,4227.7,0.9201]
[1754796521016,3.2078,4228.3,4227.7,0.9201]
[1754796521211,0.35475,4227.5,4227.1,3.2078]
[1754796521418,1.2553,4228.1,4227.2,1.7263]
[1754796521624,1.2553,4229.1,4228.2,3.0067]
[1754796521917,3.56237,4229.6,4228.4,0.35467]
[1754796522112,0.3546,4229.3,4228.5,0.8062]
[1754796522312,0.35458,4229.5,4228.5,0.8062]
[1754796522512,0.35461,4229.2,4228.5,0.8062]
[1754796523119,1.60994,4228.9,4228.5,0.8062]
[1754796523417,1.60994,4228.9,4228.4,0.9201]
[1754796523418,0.35464,4228.8,4228.3,0.8062]
[1754796523616,0.35467,4228.5,4228.2,3.2078]
[1754796523919,0.35468,4228.3,4227.7,4.4882]
[1754796524219,0.0581,4228.8,4227.8,0.8062]
[1754796524414,0.35468,4228.4,4227.8,0.8062]
[1754796524620,0.35466,4228.6,4227.8,0.8062]
[1754796524808,4.4631,4229.0,4227.8,0.8062]
[1754796525014,0.35469,4228.3,4228.1,0.8062]
[1754796525216,0.7735,4229.2,4227.7,3.2078]
[1754796525217,0.3547,4228.1,4227.8,3.0067]
[1754796525422,0.3547,4228.1,4227.9,0.8062]
[1754796525623,1.61,4228.1,4227.9,0.8062]
[1754796526518,0.35472,4227.9,4227.7,3.2078]
[1754796526719,0.35472,4227.9,4227.8,1.7263]
[1754796527022,0.3547,4228.1,4227.7,3.2078]
[1754796527222,0.3547,4228.1,4228.0,1.7263]
[1754796527624,1.61002,4227.9,4227.7,3.2078]
[1754796528127,2.0869,4227.7,4227.6,0.005]
[1754796529012,2.0869,4227.7,4226.8,0.8062]
[1754796529226,0.35478,4227.2,4226.8,0.8062]
[1754796529426,0.35479,4227.0,4226.8,0.8062]
[1754796529921,0.35479,4227.0,4226.2,1.2804]
[1754796530225,0.35479,4227.0,4226.3,1.7263]
[1754796530425,0.35479,4227.0,4226.0,3.2078]
[1754796530426,0.35478,4227.2,4226.6,0.8062]
[1754796530726,1.24364096,4229.1,4227.9,2.0906]
[1754796530928,0.9355,4229.6,4229.2,0.8062]
[1754796531225,3.2078,4230.2,4228.9,3.2078]
[1754796531226,0.35461,4229.2,4228.9,3.2078]
[1754796531423,1.2553,4229.0,4228.9,3.2078]
[1754796531823,2.1908,4229.0,4228.9,3.2078]
[1754796532624,0.35459,4229.4,4228.9,3.2078]
[1754796532831,1.60989,4229.4,4229.1,0.8062]
[1754796533128,1.2553,4229.3,4229.2,0.8062]
[1754796534125,2.54542,4229.0,4228.9,3.2078]
[1754796534320,2.1908,4229.0,4228.9,3.2078]
[1754796534520,2.1908,4229.0,4228.9,3.54043493]
[1754796534923,2.1908,4229.0,4228.9,0.33263493]
[1754796535822,2.9643,4229.0,4228.9,0.33263493]
[1754796536624,0.9355,4227.9,4226.7,0.8062]
[1754796536923,0.3548,4226.9,4226.7,0.8062]
[1754796537133,0.3548,4226.9,4226.8,0.8062]
[1754796537324,0.35479,4227.1,4226.4,3.5721]
[1754796537531,0.35479,4227.1,4227.0,0.8062]
[1754796537828,1.61009,4227.1,4227.0,0.8062]
[1754796539124,1.61009,4227.1,4226.9,3.2078]
[1754796539426,2.1908,4226.8,4226.7,0.8062]
[1754796539622,1.2553,4226.4,4224.6,4.014]
[1754796539827,0.35496,4225.0,4224.6,3.2078]
[1754796540027,0.35495,4225.1,4224.6,3.2078]
[1754796540233,1.2553,4226.0,4225.1,0.8062]
[1754796540822,0.35491,4225.6,4224.6,3.2078]
[1754796541023,0.35492,4225.5,4224.9,0.8062]
[1754796541227,0.35498,4224.8,4224.7,3.0067]
[1754796541527,2.1908,4225.4,4224.3,1.7263]
[1754796541718,3.2078,4225.2,4224.3,1.7263]
[1754796541921,0.355,4224.6,4224.3,0.9201]
[1754796542229,1.61028,4224.8,4224.6,0.8062]
[1754796542424,3.2078,4225.1,4224.7,3.0067]
[1754796542728,1.2553,4225.8,4224.5,3.0067]
[1754796542929,3.2078,4226.2,4225.1,0.8062]
[1754796543230,0.35487,4226.1,4225.2,1.2804]
[1754796543422,0.35487,4226.1,4225.3,1.7263]
[1754796543623,0.3549,4225.8,4225.3,1.7263]
[1754796543837,3.2078,4226.2,4225.5,3.0067]
[1754796544024,0.35487,4226.1,4225.5,3.0067]
[1754796544329,0.35487,4226.1,4225.5,3.5067]
[1754796544927,3.2078,4226.2,4225.6,0.35491]
[1754796545118,3.2078,4226.2,4225.6,3.01]
[1754796545119,0.35487,4226.1,4225.6,3.01]
[1754796545318,3.2078,4226.2,4225.6,3.01]
[1754796545729,0.35487,4226.1,4225.6,3.01]
[1754796545925,0.35487,4226.1,4225.4,3.2078]
[1754796545926,3.2078,4226.2,4225.5,0.8322]
[1754796546530,3.2078,4226.2,4225.6,0.9035]
[1754796546727,0.35487,4226.1,4225.4,3.2078]
[1754796547025,3.2078,4226.2,4226.0,3.01]
[1754796547234,0.35487,4226.1,4225.5,0.5]
[1754796547830,0.35487,4226.1,4225.7,2.1778]
[1754796548030,3.2078,4226.9,4226.1,2.09057]
[1754796548224,0.35481,4226.8,4226.2,0.8322]
[1754796548934,3.2078,4226.9,4226.1,0.35486]
[1754796549130,3.2078,4226.9,4226.2,3.36486]
[1754796549331,3.5626,4226.9,4226.2,3.01]
[1754796549532,3.2078,4226.9,4226.3,0.8322]
[1754796549925,4.4918,4227.5,4226.3,0.8322]
[1754796550125,0.005,4227.3,4226.5,0.005]
[1754796550330,0.005,4227.3,4226.6,0.8322]
[1754796550729,0.35477,4227.2,4226.6,3.01]
[1754796550929,0.35477,4227.2,4226.5,3.2128]
[1754796551228,0.35477,4227.2,4226.6,1.7357]
[1754796551424,0.35477,4227.2,4226.5,3.56763]
[1754796551628,0.35477,4227.2,4227.1,6.2178]
[1754796552431,0.005,4227.3,4227.2,2.1065]
[1754796552630,0.005,4227.3,4227.2,3.01]
[1754796553533,0.005,4227.3,4227.2,9.01]
[1754796553934,3.56247,4228.5,4227.6,0.35474]
[1754796554129,3.56247,4228.5,4227.9,3.01]
[1754796554434,0.35464,4228.8,4228.2,3.36469]
[1754796554635,0.35464,4228.8,4228.3,0.8322]
[1754796554833,1.284,4229.1,4228.4,0.35467]
[1754796554834,0.35463,4229.0,4228.4,0.35467]
[1754796555038,0.35463,4229.0,4228.5,0.8322]
[1754796555338,0.35463,4229.0,4228.3,3.2078]
[1754796555538,0.35463,4229.0,4228.9,3.01]
[1754796556133,0.35463,4229.0,4228.3,3.2078]
[1754796556134,3.2078,4229.3,4229.0,3.01]
[1754796556331,0.9702,4229.5,4229.2,0.8322]
[1754796556535,3.2078,4230.0,4229.0,0.8322]
[1754796556738,0.35455,4229.9,4229.0,0.8322]
[1754796557135,0.35455,4229.9,4229.2,0.8322]
[1754796557736,0.35446,4231.0,4229.8,0.35455]
[1754796557936,0.35449,4230.7,4229.8,3.2078]
[1754796558235,0.35447,4230.9,4230.7,0.8322]
[1754796558439,2.60867,4230.9,4230.8,0.8322]
[1754796558635,2.60867,4230.9,4230.5,1.2743]
[1754796558837,2.2542,4230.8,4230.6,0.8322]
[1754796559434,0.35448,4230.7,4230.1,1.7357]
[1754796560534,3.56228,4230.7,4230.1,1.7357]
[1754796560936,0.35451,4230.4,4230.1,0.9035]
[1754796561138,0.35451,4230.4,4230.3,0.8322]
[1754796561335,2.60871,4230.4,4230.3,0.8322]
[1754796561737,2.2542,4230.4,4229.7,0.8322]
[1754796562939,0.35452,4230.3,4229.7,0.8322]
[1754796563140,0.35454,4230.0,4229.7,0.8322]
[1754796563334,0.35453,4230.2,4229.9,1.7357]
[1754796563540,1.284,4230.7,4229.8,0.35455]
[1754796563743,0.35448,4230.8,4230.2,1.7357]
[1754796564039,0.35447,4230.9,4230.3,2.1065]
[1754796564339,0.35946,4231.0,4230.4,0.35451]
[1754796564535,3.2078,4232.1,4231.1,0.35444]
[1754796564733,3.2078,4232.1,4231.4,1.7357]
[1754796564934,3.2078,4232.1,4231.6,0.35441]
[1754796565239,3.2078,4232.1,4231.8,3.01]
[1754796565440,3.2078,4232.1,4231.4,0.35442]
[1754796565635,3.2078,4232.1,4231.2,3.2078]
[1754796565636,3.2078,4232.1,4232.0,3.01]
[1754796566342,0.35433,4232.5,4231.7,3.5622]
[1754796566644,0.35433,4232.6,4232.2,3.2078]
[1754796566940,3.2078,4232.9,4232.3,0.8322]
[1754796567337,3.2078,4232.9,4231.8,2.1065]
[1754796567338,0.35436,4232.1,4231.8,2.1065]
[1754796567539,0.35434,4232.4,4231.8,3.01]
[1754796567735,0.35434,4232.4,4231.9,0.8322]
[1754796567936,0.35434,4232.4,4231.7,31.527]
[1754796568138,0.35434,4232.4,4231.8,3.01]
[1754796568336,3.2078,4232.9,4231.9,3.01]
[1754796568641,0.35434,4232.4,4232.1,3.01]
[1754796568841,3.2078,4232.9,4232.3,3.01]
[1754796569037,0.35431,4232.8,4232.4,0.8322]
[1754796569338,0.3543,4232.9,4232.6,3.01]
[1754796569541,0.35433,4232.5,4232.1,34.367]
[1754796569743,0.35433,4232.5,4232.2,0.8322]
[1754796569945,2.2542,4232.3,4232.2,0.8322]
[1754796570945,0.35434,4232.4,4231.8,0.35439]
[1754796571146,0.35434,4232.4,4231.6,3.01]
[1754796571344,0.35434,4232.4,4231.8,0.8322]
[1754796571541,3.2078,4232.6,4232.0,0.8322]
[1754796571746,3.2078,4232.6,4231.9,31.252]
[1754796571747,0.35433,4232.5,4231.9,31.252]
[1754796571950,3.2078,4232.6,4231.9,31.252]
[1754796571951,0.35436,4232.2,4231.9,31.252]
[1754796572146,0.35436,4232.3,4231.9,31.177]
[1754796572442,0.35433,4232.5,4232.0,2.1778]
[1754796572645,0.35433,4232.5,4231.9,31.177]
[1754796572841,0.35436,4232.3,4232.1,3.01]
[1754796573046,0.35434,4232.4,4232.2,3.01]
[1754796573247,0.35434,4232.4,4232.3,3.01]
[1754796573545,0.3543,4233.0,4232.2,3.2078]
[1754796573748,1.284,4233.5,4232.7,3.01]
[1754796573941,5.462,4234.1,4232.9,3.01]
[1754796574142,3.2078,4234.1,4233.3,3.01]
[1754796574345,0.35414,4234.8,4233.9,3.01]
[1754796574547,0.9702,4234.9,4234.3,0.35418]
[1754796574742,0.005,4234.8,4234.7,1.2743]
[1754796574936,0.664,4235.6,4234.7,1.2743]
[1754796574937,5.462,4235.9,4234.8,2.1778]
[1754796575142,0.35405,4235.8,4234.9,1.18633]
[1754796575343,5.462,4235.9,4234.9,0.8322]
[1754796575543,5.462,4235.9,4234.8,2.1778]
[1754796575544,0.35412,4235.1,4234.7,3.2078]
[1754796575745,0.35413,4234.9,4234.7,3.2078]
[1754796575950,2.1155,4234.8,4234.7,3.2078]
[1754796576151,0.35415,4234.7,4234.3,0.836]
[1754796576345,0.3542,4234.1,4233.9,3.2078]
[1754796576552,0.3542,4234.1,4232.9,0.35429]
[1754796576553,2.46975,4233.5,4233.1,2.1683]
[1754796576847,0.35425,4233.5,4232.8,6.087]
[1754796577044,0.35425,4233.5,4233.4,0.836]
[1754796577246,0.885,4233.9,4233.0,0.35429]
[1754796577447,0.35426,4233.4,4232.8,3.0043]
[1754796577752,1.58472,4233.8,4232.9,0.836]
[1754796578248,3.2078,4234.1,4232.9,0.836]
[1754796578547,3.2078,4234.1,4232.4,34.036]
[1754796578548,3.2078,4234.1,4233.4,1.2756]
[1754796578744,0.35423,4233.7,4233.3,3.0043]
[1754796579138,3.2078,4234.1,4233.4,3.0043]
[1754796579337,3.2078,4234.1,4233.2,3.56207]
[1754796579338,0.35423,4233.8,4233.7,3.0043]
[1754796579750,0.35423,4233.8,4233.7,0.836]
[1754796579954,0.35426,4233.3,4233.2,4.0438]
[1754796580141,1.58476,4233.3,4233.2,4.0438]
[1754796580548,2.46976,4233.3,4233.2,0.836]
[1754796581650,2.1155,4233.3,4233.2,0.836]
[1754796581854,0.35426,4233.4,4233.0,30.753]
[1754796582153,0.35426,4233.4,4233.3,0.836]
[1754796582355,0.35427,4233.2,4233.0,31.586]
[1754796582545,2.46977,4233.3,4233.1,0.836]
[1754796583046,0.35425,4233.5,4233.4,0.836]
[1754796583251,2.46978,4233.2,4233.0,0.836]
[1754796583441,0.35427,4233.3,4233.2,0.836]
[1754796583644,2.1155,4233.9,4233.3,0.836]
[1754796583645,0.35425,4233.5,4233.3,0.836]
[1754796583846,2.1155,4233.5,4233.3,0.836]
[1754796584052,0.35424,4233.7,4233.5,0.836]
[1754796584249,3.2078,4234.1,4233.9,2.1683]
[1754796584555,3.2078,4234.8,4234.2,3.0043]
[1754796584852,0.35413,4234.9,4234.4,0.836]
[1754796585054,0.89,4235.1,4234.7,0.35415]
[1754796585250,0.005,4235.1,4234.7,3.35845]
[1754796585452,0.005,4235.1,4234.8,3.0043]
[1754796585647,0.35911,4235.1,4235.0,0.836]
[1754796585856,2.1205,4235.1,4235.0,0.836]
[1754796586043,0.005,4235.1,4235.0,0.836]
[1754796586654,0.005,4235.1,4235.0,1.7287]
[1754796587157,0.005,4235.1,4235.0,3.0043]
[1754796587949,0.005,4235.1,4235.0,39.2803]
[1754796588352,0.005,4235.1,4235.0,9.0043]
[1754796588552,0.005,4235.1,4235.0,33.2423]
[1754796589664,0.35402,4236.2,4235.3,0.3541]
[1754796589860,0.35402,4236.2,4235.5,0.35408]
[1754796590162,0.35402,4236.2,4235.6,0.836]
[1754796590351,0.35402,4236.2,4235.7,30.161]
[1754796590550,3.2078,4236.4,4235.9,0.836]
[1754796590760,1.2305,4236.1,4236.0,0.836]
[1754796590955,0.885,4236.2,4236.0,30.927]
[1754796591156,0.885,4236.2,4236.1,0.836]
[1754796591354,2.1155,4236.2,4235.5,0.836]
[1754796591558,3.2078,4236.4,4235.4,3.2078]
[1754796591559,2.46958,4235.5,4235.4,3.2078]
[1754796591757,2.1155,4235.5,4235.4,34.0818]
[1754796592056,1.2305,4236.2,4235.6,1.19007]
[1754796592256,1.2305,4236.2,4235.5,2.1683]
[1754796592257,0.53455802,4236.3,4235.8,1.7287]
[1754796592560,3.2078,4236.4,4236.1,3.0043]
[1754796592760,3.2078,4236.4,4236.0,0.35403]
[1754796592761,3.2078,4236.4,4236.3,3.0043]
[1754796593058,0.53455802,4237.1,4236.4,0.836]
[1754796593256,0.6619,4236.7,4235.9,3.2078]
[1754796593453,0.6619,4236.7,4233.3,1.67795783]
[1754796593454,2.46961,4235.1,4235.0,3.7078]
[1754796593760,0.35409,4235.4,4235.1,2.1683]
[1754796593955,0.35409,4235.4,4235.2,2.1683]
[1754796594149,0.35408,4235.5,4235.3,30.9817]
[1754796594353,0.35408,4235.5,4235.4,0.836]
[1754796594553,2.46958,4235.5,4235.4,30.906]
[1754796594954,1.2305,4235.1,4235.0,33.7588]
[1754796595260,0.35408,4235.5,4235.2,3.0043]
[1754796595463,0.35408,4235.5,4235.2,2.1683]
[1754796595756,0.35406,4235.7,4235.3,29.993]
[1754796595961,2.1155,4235.4,4235.3,29.993]
[1754796596163,0.3541,4235.3,4235.0,0.5]
[1754796596359,1.016,4235.3,4235.0,0.5]
[1754796596555,0.6619,4235.2,4235.0,30.442]
[1754796596860,0.6619,4235.2,4235.1,29.926]
[1754796597262,0.35409,4235.4,4235.0,0.5]
[1754796597460,0.3541,4235.2,4235.0,1.336]
[1754796597650,2.1155,4235.2,4235.0,1.336]
[1754796597855,2.1155,4235.2,4235.1,29.851]
[1754796598057,2.1155,4235.1,4235.0,0.5]
[1754796598254,2.1155,4235.4,4235.2,0.836]
[1754796598555,2.1155,4235.1,4235.0,0.5]
[1754796598955,2.1155,4235.1,4235.0,30.285]
[1754796599153,0.6619,4235.7,4235.1,3.0043]
[1754796599154,2.1155,4235.4,4235.1,3.0043]
[1754796599357,0.35408,4235.6,4235.3,3.0043]
[1754796599662,2.63750751,4236.0,4235.6,2.1683]
[1754796599862,0.87604751,4236.0,4235.7,0.836]
[1754796600052,0.35407,4235.7,4235.5,29.73]
[1754796600256,0.35408,4235.5,4235.2,0.836]
[1754796600458,2.7767,4235.2,4235.1,0.005]
[1754796600762,1.68,4234.3,4234.1,0.836]
[1754796600953,1.68,4234.2,4234.1,0.836]
[1754796601560,0.4495,4233.5,4233.4,34.014]
[1754796601752,0.97133987,4234.1,4233.4,34.85]
[1754796601953,1.68,4234.3,4233.5,29.624]
[1754796602157,0.3542,4234.1,4233.5,29.624]
[1754796602458,2.03419,4234.2,4233.5,29.624]
[1754796602658,0.3542,4234.1,4233.5,30.5167]
[1754796602962,1.68,4234.2,4233.5,30.5167]
[1754796603358,0.35423,4233.8,4233.5,30.5167]
[1754796603559,2.3412,4233.5,4232.7,3.2078]
[1754796603760,0.35431,4232.8,4232.6,29.551]
[1754796603957,1.68,4232.7,4232.6,29.551]
[1754796604161,1.68,4232.7,4232.6,30.387]
[1754796604359,0.52183987,4233.3,4232.6,30.387]
[1754796604557,4.8878,4233.4,4232.6,30.387]
[1754796604867,0.35422,4233.9,4233.3,3.0043]
[1754796605163,1.75311321,4234.0,4233.5,0.35425]
[1754796605362,1.75311321,4234.0,4233.7,0.35423]
[1754796605363,1.2305,4234.0,4233.7,0.35423]
[1754796605662,0.35423,4233.8,4233.6,29.461]
[1754796605862,2.3277,4233.7,4233.6,29.461]
[1754796606062,2.68194,4233.6,4233.2,29.43]
[1754796606362,1.6646,4233.3,4233.2,29.43]
[1754796606563,1.2202,4233.8,4233.2,30.60917]
[1754796607065,1.2202,4233.8,4233.2,30.2549]
[1754796607268,1.2202,4233.8,4233.2,30.25109284]
[1754796607567,1.2202,4233.8,4233.3,0.35427]
[1754796607759,1.6646,4233.7,4233.5,0.8249]
[1754796607956,3.6522,4234.1,4233.6,0.8249]
[1754796608156,4.8724,4234.1,4233.8,0.8249]
[1754796608458,3.2078,4234.1,4234.0,0.9124]
[1754796608654,0.5,4234.2,4234.0,2.9904]
[1754796608854,0.5,4234.2,4234.1,32.2724]
[1754796609355,2.1646,4234.2,4234.1,0.8249]
[1754796609560,3.18189,4234.2,4234.1,0.5]
[1754796610060,3.18189,4234.2,4233.1,3.2078]
[1754796610061,0.35423,4233.8,4233.1,3.2078]
[1754796610258,1.2202,4233.3,4232.5,4.0327]
[1754796610454,0.35429,4233.0,4232.2,29.193]
[1754796610760,1.2202,4233.1,4232.3,2.078]
[1754796610961,0.35431,4232.8,4232.3,2.078]
[1754796611164,1.2202,4232.7,4232.4,0.8249]
[1754796611356,0.005,4233.1,4232.3,2.9904]
[1754796611560,0.005,4233.1,4232.2,0.35936]
[1754796611561,0.005,4233.1,4232.6,0.35432]
[1754796611765,0.35431,4232.8,4232.7,29.9589]
[1754796612065,1.2202,4232.6,4232.2,0.8299]
[1754796612362,1.2202,4232.4,4232.2,0.8299]
[1754796612568,1.2202,4232.4,4232.3,29.092]
[1754796612763,3.2078,4232.8,4232.2,0.005]
[1754796612764,0.35434,4232.5,4232.2,0.005]
[1754796612962,1.8277,4232.3,4232.2,0.005]
[1754796613468,1.8277,4232.3,4231.1,32.2768]
[1754796613469,1.2202,4232.1,4231.1,32.2768]
[1754796613660,3.5622,4231.7,4231.1,32.2768]
[1754796613864,4.428,4231.7,4231.1,32.2768]
[1754796614061,1.2202,4231.6,4231.3,0.8249]
[1754796614565,1.2202,4231.6,4231.1,3.2078]
[1754796614768,1.2202,4231.6,4230.5,63.046]
[1754796614970,0.35447,4230.9,4230.6,0.8249]
[1754796615172,1.57469,4230.6,4230.3,3.2078]
[1754796615371,1.2202,4230.4,4230.3,3.2078]
[1754796615663,1.57472,4230.3,4230.0,1.7373]
[1754796615860,0.35448,4230.8,4230.1,2.078]
[1754796616064,1.2202,4230.4,4230.3,0.8249]
[1754796616265,1.2202,4230.3,4230.2,28.944]
[1754796616463,0.6025,4230.8,4230.2,29.7689]
[1754796616670,0.35448,4230.8,4230.2,29.7689]
[1754796616858,4.428,4230.9,4230.3,0.35452]
[1754796617058,3.2078,4231.4,4230.9,0.35447]
[1754796617262,3.2078,4231.4,4231.1,2.9904]
[1754796617460,3.2078,4232.0,4231.4,1.17933]
[1754796617666,3.2078,4232.0,4231.7,2.9904]
[1754796617867,3.2078,4232.0,4231.1,0.9124]
[1754796618071,3.8103,4232.0,4231.5,0.8249]
[1754796618369,1.2202,4231.7,4231.5,0.8249]
[1754796618568,0.35442,4231.5,4231.1,0.9124]
[1754796618870,0.35442,4231.5,4230.8,34.031]
[1754796618871,1.2202,4231.1,4230.9,0.8249]
[1754796619068,0.35442,4231.5,4230.8,34.031]
[1754796619069,3.2078,4231.5,4230.8,34.031]
[1754796619268,0.35446,4231.1,4230.8,34.031]
[1754796619469,0.35447,4230.9,4230.1,29.7044]
[1754796619675,0.35447,4230.9,4230.3,0.8249]
[1754796620669,4.428,4231.0,4230.2,28.807]
[1754796620870,3.2078,4231.0,4230.3,2.1655]
[1754796621073,3.2078,4231.0,4230.4,0.8249]
[1754796621268,3.2078,4231.0,4230.7,0.35449]
[1754796621471,1.2202,4231.6,4230.9,0.35447]
[1754796621669,1.2202,4231.6,4231.2,0.35444]
[1754796621873,3.2078,4232.0,4231.1,2.078]
[1754796622068,3.2078,4232.0,4231.3,0.35443]
[1754796622274,3.2078,4232.0,4231.2,0.8249]
[1754796622475,1.2202,4231.9,4231.2,0.8249]
[1754796622770,3.2078,4232.0,4231.9,2.9904]
[1754796622978,3.2078,4233.1,4232.5,3.34473]
[1754796623167,0.35429,4233.0,4232.5,2.9904]
[1754796623368,2.1625,4232.9,4232.6,28.668]
[1754796623568,3.2078,4233.1,4232.7,1.2531]
[1754796623765,3.2078,4233.1,4232.8,0.35431]
[1754796624172,3.2078,4233.1,4232.6,0.35432]
[1754796624373,0.005,4233.2,4232.5,3.06212]
[1754796624577,0.35429,4233.0,4232.5,3.06212]
[1754796624779,2.9479,4232.6,4232.5,3.06212]
[1754796625580,3.30223,4232.5,4232.4,0.005]
[1754796625974,9.30223,4232.5,4232.4,0.005]
[1754796626574,0.3544,4231.7,4231.4,62.566]
[1754796626877,4.09362,4232.7,4230.9,28.506]
[1754796626878,2.0056,4231.5,4230.9,28.506]
[1754796627271,1.29673,4231.4,4230.9,28.469]
[1754796627574,2.9479,4231.2,4230.8,0.5]
[1754796627768,3.2078,4231.3,4231.0,1.2531]
[1754796627976,0.3544,4231.7,4230.9,2.9904]
[1754796628172,1.2202,4231.0,4230.4,2.9904]
[1754796628376,0.35449,4230.7,4230.1,3.2078]
[1754796628681,2.9479,4231.0,4230.2,0.35453]
[1754796628884,3.2078,4231.3,4230.2,0.35453]
[1754796628885,3.2078,4231.3,4230.2,2.9904]
[1754796629180,0.35448,4230.8,4230.1,31.6498]
[1754796629377,0.35447,4231.0,4230.8,0.5]
[1754796629569,2.9479,4230.9,4230.8,0.5]
[1754796630578,2.9479,4230.9,4229.5,2.9904]
[1754796630579,6.0,4230.9,4229.5,2.9904]
[1754796630778,0.35457,4229.8,4229.3,3.2078]
[1754796631084,0.35458,4229.6,4229.3,4.9451]
[1754796631380,4.428,4230.1,4229.5,0.8249]
[1754796631576,0.35454,4230.1,4229.4,2.9904]
[1754796631780,3.7078,4230.6,4229.5,2.9904]
[1754796631976,2.4555,4230.5,4229.5,1.7373]
[1754796632279,2.4555,4230.4,4229.5,1.7373]
[1754796632577,3.7078,4230.6,4229.8,0.9124]